fUSD/lending_fUSD_20260218
["ID","MTS","AMOUNT","RATE_DAILY","PERIOD"]
[405958373,1771455043954,-500.0,0.00017973,2]
[405958374,1771455043964,-500.0,0.00017973,2]
[405958375,1771455043973,-500.0,0.00017973,2]
[405958376,1771455043982,-1149.27516242,0.0001799,2]
[405958377,1771455043992,-6404.78,0.00017999,2]
[405958378,1771455044001,-591.1,0.00017999,2]
[405958379,1771455044012,-591.1,0.00017999,2]
[405958380,1771455044021,-591.1,0.00017999,2]
[405958381,1771455044030,-591.1,0.00017999,2]
[405958382,1771455044040,-591.1,0.00017999,2]
[405958383,1771455044049,-591.10047002,0.00017999,2]
[405958384,1771455044059,-761.18,0.00017999,2]
[405958385,1771455044068,-761.18,0.00017999,2]
[405958386,1771455044079,-761.18,0.00017999,2]
[405958387,1771455044088,-761.18,0.00017999,2]
[405958388,1771455044098,-761.18,0.00017999,2]
[405958389,1771455044107,-761.36,0.00017999,2]
[405958390,1771455044118,-300.0,0.00017999,2]
[405958391,1771455044127,-500.0,0.00017999,2]
[405958392,1771455044137,-500.0,0.00017999,2]
[405958393,1771455044147,-500.0,0.00017999,2]
[405958394,1771455044157,-500.0,0.00017999,2]
[405958395,1771455044167,-152.1,0.00017999,2]
[405958396,1771455044176,-300.0,0.00017999,2]
[405958397,1771455044187,-297.03102847,0.00017999,2]
[405958398,1771455044197,-804030.91794194,0.00018,2]
[405958405,1771455045711,-14194.65262109,0.00018,2]
[405958406,1771455045931,-2253.84616683,0.00018,2]
[405958414,1771455994798,150.0,0.00016522,120]
[405958419,1771456231998,-214.0,7.571e-05,2]
[405958420,1771456232008,-240.11874776,7.7e-05,2]
[405958421,1771456232023,-159.88125224,7.7e-05,2]
[405958422,1771456232032,-800.0,7.8e-05,2]
[405958423,1771456232042,-250.0,7.832e-05,2]
[405958424,1771456232051,-682.49871151,7.9e-05,2]
[405958425,1771456232062,-517.50128849,7.9e-05,2]
[405958426,1771456232073,-1600.0,8e-05,2]
[405958427,1771456232082,-152.69,8.041e-05,2]
[405958428,1771456232091,-1200.0,8.092e-05,2]
[405958429,1771456232103,-300.0,8.092e-05,2]
[405958430,1771456232113,-300.0,8.092e-05,2]
[405958431,1771456232123,-2607.343,8.093e-05,2]
[405958432,1771456232133,-184.237,8.093e-05,2]
[405958433,1771456232143,-30863.17877356,8.158e-05,2]
[405958434,1771456232155,-5469.63784536,8.158e-05,2]
[405958435,1771456232167,-1416.0,8.158e-05,2]
[405958436,1771456232179,-10078.44371312,8.158e-05,2]
[405958437,1771456232207,-407.0,8.158e-05,2]
[405958438,1771456232220,-295.99999997,8.158e-05,2]
[405958441,1771456238279,-1538.01340918,8.158e-05,2]
[405958442,1771456240190,-518.12685528,8.158e-05,2]
[405958443,1771456240202,-10097.47400353,8.158e-05,2]
[405958444,1771456240212,-152.69,8.17e-05,2]
[405958445,1771456240221,-150.0,8.23e-05,2]
[405958446,1771456240230,-151.0,8.255e-05,2]
[405958447,1771456240239,-151.0,8.255e-05,2]
[405958448,1771456240249,-505.53060299,8.257e-05,2]
[405958449,1771456240263,-269.02571503,8.257e-05,2]
[405958450,1771456240277,-167.98424554,8.257e-05,2]
[405958451,1771456240287,-604.5853943,8.257e-05,2]
[405958452,1771456240307,-500.0,8.257e-05,2]
[405958453,1771456240319,-500.0,8.257e-05,2]
[405958454,1771456240328,-500.0,8.257e-05,2]
[405958455,1771456240337,-500.0,8.257e-05,2]
[405958456,1771456240347,-500.0,8.257e-05,2]
[405958457,1771456240355,-500.0,8.257e-05,2]
[405958458,1771456240364,-500.0,8.257e-05,2]
[405958459,1771456240373,-322.37171318,8.257e-05,2]
[405958460,1771456240383,-500.0,8.257e-05,2]
[405958461,1771456240391,-500.0,8.257e-05,2]
[405958462,1771456240401,-500.0,8.257e-05,2]
[405958463,1771456240410,-500.0,8.257e-05,2]
[405958464,1771456240421,-446.76582738,8.257e-05,2]
[405958465,1771456240431,-150.0,8.257e-05,2]
[405958466,1771456240441,-218.80376358,8.257e-05,2]
[405958467,1771456240451,-500.0,8.257e-05,2]
[405958468,1771456240461,-3500000.0,8.258e-05,2]
[405958469,1771456240472,-152.69,8.299e-05,2]
[405958470,1771456240484,-403.24562456,8.328e-05,2]
[405958471,1771456240494,-170.40667766,8.328e-05,2]
[405958472,1771456240504,-9388.06383748,8.328e-05,2]
[405958473,1771456240515,-250.0,8.328e-05,2]
[405958474,1771456240524,-5000.0,8.328e-05,2]
[405958475,1771456240535,-5000.0,8.328e-05,2]
[405958476,1771456240546,-5000.0,8.328e-05,2]
[405958477,1771456240556,-5000.0,8.328e-05,2]
[405958478,1771456240565,-5000.0,8.328e-05,2]
[405958479,1771456240574,-152.69,8.428e-05,2]
[405958480,1771456240584,-152.69,8.557e-05,2]
[405958481,1771456240593,-152.69,8.686e-05,2]
[405958482,1771456240602,-152.69,8.815e-05,2]
[405958483,1771456240612,-152.69,8.944e-05,2]
[405958484,1771456240623,-152.69,9.073e-05,2]
[405958485,1771456240632,-19155.35666667,9.199e-05,2]
[405958486,1771456240642,-152.69,9.202e-05,2]
[405958487,1771456240652,-152.69,9.331e-05,2]
[405958488,1771456240661,-152.69,9.46e-05,2]
[405958489,1771456240672,-151.0,0.0001,2]
[405958490,1771456240682,-151.0,0.0001,2]
[405958491,1771456240692,-151.0,0.0001,2]
[405958492,1771456240702,-151.0,0.0001,2]
[405958493,1771456240712,-151.0,0.0001,2]
[405958494,1771456240722,-151.0,0.0001,2]
[405958495,1771456240732,-151.0,0.0001,2]
[405958496,1771456240741,-151.0,0.0001,2]
[405958497,1771456240751,-151.0,0.0001,2]
[405958498,1771456240759,-151.0,0.0001,2]
[405958499,1771456240770,-151.0,0.0001,2]
[405958500,1771456240779,-151.0,0.0001,2]
[405958501,1771456240790,-151.0,0.0001,2]
[405958502,1771456240801,-151.0,0.0001,2]
[405958503,1771456240811,-151.0,0.0001,2]
[405958504,1771456240820,-151.0,0.0001,2]
[405958505,1771456240830,-151.0,0.0001,2]
[405958506,1771456240839,-151.0,0.0001,2]
[405958507,1771456240850,-151.0,0.0001,2]
[405958508,1771456240861,-151.0,0.0001,2]
[405958509,1771456240871,-500.0,0.0001,2]
[405958510,1771456240881,-1415.69506442,0.0001,2]
[405958511,1771456240891,-1415.69506442,0.0001,2]
[405958512,1771456240901,-1296.94086445,0.0001,2]
[405958513,1771456240911,-250.0,0.00010004,2]
[405958514,1771456240921,-500.0,0.0001019,2]
[405958515,1771456240932,-1500.0,0.00010212,2]
[405958516,1771456240943,-500.0,0.00010274,2]
[405958517,1771456240953,-150.99,0.00010475,2]
[405958518,1771456240962,-9999.99,0.00010475,2]
[405958519,1771456240971,-394.45999999,0.00010548,2]
[405958520,1771456240980,-2000.0,0.000109,3]
[405958521,1771456240989,-2054.8977578,0.000109,2]
[405958522,1771456240999,-2054.89775776,0.000109,2]
[405958523,1771456241008,-2054.89775776,0.00010991,2]
[405958524,1771456241018,-4129.7286,0.00010999,2]
[405958525,1771456241027,-151.0,0.00011096,2]
[405958526,1771456241036,-41256.98007246,0.00011099,2]
[405958527,1771456241045,-41256.98007245,0.00011099,2]
[405958528,1771456241054,-41256.98007245,0.00011099,2]
[405958529,1771456241064,-150.0,0.00011104,7]
[405958530,1771456241073,-1097.17052945,0.00011183,2]
[405958531,1771456241083,-41256.98007245,0.00011452,2]
[405958532,1771456241092,-166.66,0.00011987,2]
[405958533,1771456241101,-2054.89775776,0.00012373,2]
[405958534,1771456241110,-166.66,0.00012383,2]
[405958535,1771456241119,-246.40955536,0.0001241,2]
[405958536,1771456241129,-41256.98007245,0.00012527,2]
[405958537,1771456241138,-153.18,0.00012772,2]
[405958538,1771456241147,-166.66,0.00012779,2]
[405958539,1771456241156,-306.35,0.00012784,2]
[405958540,1771456241165,-150.0,0.00012825,2]
[405958541,1771456241175,-1296.94086443,0.0001305,2]
[405958542,1771456241184,-403.24562454,0.00013064,2]
[405958543,1771456241192,-9388.06383747,0.00013064,2]
[405958544,1771456241201,-166.66,0.00013174,2]
[405958545,1771456241211,-166.66,0.0001357,2]
[405958546,1771456241220,-41256.98007245,0.00013601,2]
[405958547,1771456241229,-500.0,0.00013698,2]
[405958548,1771456241239,-500.0,0.00013698,2]
[405958549,1771456241248,-464.29440353,0.00013698,2]
[405958550,1771456241257,-500.0,0.00013698,2]
[405958551,1771456241266,-500.0,0.00013698,2]
[405958552,1771456241275,-500.0,0.00013698,2]
[405958553,1771456241284,-500.0,0.00013698,2]
[405958554,1771456241294,-500.0,0.00013698,2]
[405958555,1771456241303,-500.0,0.00013698,2]
[405958556,1771456241312,-500.0,0.00013698,2]
[405958557,1771456241321,-500.0,0.00013698,2]
[405958558,1771456241331,-500.0,0.00013698,2]
[405958559,1771456241340,-500.0,0.00013698,2]
[405958560,1771456241349,-500.0,0.00013698,2]
[405958561,1771456241358,-500.0,0.00013698,2]
[405958562,1771456241367,-500.0,0.00013698,2]
[405958563,1771456241376,-500.0,0.00013698,2]
[405958564,1771456241385,-500.0,0.00013698,2]
[405958565,1771456241394,-500.0,0.00013698,2]
[405958566,1771456241404,-372.32,0.00013698,2]
[405958567,1771456241413,-500.0,0.00013698,2]
[405958568,1771456241422,-500.0,0.00013698,2]
[405958569,1771456241431,-591.1,0.00013698,2]
[405958570,1771456241440,-591.1,0.00013698,2]
[405958571,1771456241450,-591.1,0.00013698,2]
[405958572,1771456241460,-591.1,0.00013698,2]
[405958573,1771456241469,-591.1,0.00013698,2]
[405958574,1771456241478,-591.1,0.00013698,2]
[405958575,1771456241488,-591.1,0.00013698,2]
[405958576,1771456241497,-591.1,0.00013698,2]
[405958577,1771456241505,-591.1,0.00013698,2]
[405958578,1771456241516,-591.1,0.00013698,2]
[405958579,1771456241525,-591.1,0.00013698,2]
[405958580,1771456241534,-591.1,0.00013698,2]
[405958581,1771456241545,-591.1,0.00013698,2]
[405958582,1771456241554,-591.1,0.00013698,2]
[405958583,1771456241564,-591.1,0.00013698,2]
[405958584,1771456241573,-591.1,0.00013698,2]
[405958585,1771456241582,-500.0,0.00013698,2]
[405958586,1771456241592,-500.0,0.00013698,2]
[405958587,1771456241602,-500.0,0.00013698,2]
[405958588,1771456241613,-500.0,0.00013698,2]
[405958589,1771456241623,-500.0,0.00013698,2]
[405958590,1771456241634,-500.0,0.00013698,2]
[405958591,1771456241644,-500.0,0.00013698,2]
[405958592,1771456241655,-500.0,0.00013698,2]
[405958593,1771456241665,-500.0,0.00013698,2]
[405958594,1771456241675,-500.0,0.00013698,2]
[405958595,1771456241685,-500.0,0.00013698,2]
[405958596,1771456241694,-500.0,0.00013698,2]
[405958597,1771456241704,-500.0,0.00013698,2]
[405958598,1771456241713,-500.0,0.00013698,2]
[405958599,1771456241726,-500.0,0.00013698,2]
[405958600,1771456241736,-500.0,0.00013698,2]
[405958601,1771456241746,-761.18,0.00013698,2]
[405958602,1771456241756,-761.18,0.00013698,2]
[405958603,1771456241767,-761.18,0.00013698,2]
[405958604,1771456241966,-761.18,0.00013698,2]
[405958605,1771456241977,-761.18,0.00013698,2]
[405958606,1771456241986,-761.18,0.00013698,2]
[405958607,1771456241996,-761.18,0.00013698,2]
[405958608,1771456242006,-761.18,0.00013698,2]
[405958609,1771456242016,-761.18,0.00013698,2]
[405958610,1771456242025,-761.18,0.00013698,2]
[405958611,1771456242035,-761.18,0.00013698,2]
[405958612,1771456242044,-761.18,0.00013698,2]
[405958613,1771456242053,-761.18,0.00013698,2]
[405958614,1771456242063,-761.18,0.00013698,2]
[405958615,1771456242073,-761.18,0.00013698,2]
[405958616,1771456242083,-761.18,0.00013698,2]
[405958617,1771456242095,-500.0,0.00013698,2]
[405958618,1771456242105,-500.0,0.00013698,2]
[405958619,1771456242115,-500.0,0.00013698,2]
[405958620,1771456242125,-500.0,0.00013698,2]
[405958621,1771456242134,-500.0,0.00013698,2]
[405958622,1771456242143,-500.0,0.00013698,2]
[405958623,1771456242153,-500.0,0.00013698,2]
[405958624,1771456242163,-500.0,0.00013698,2]
[405958625,1771456242173,-500.0,0.00013698,2]
[405958626,1771456242183,-500.0,0.00013698,2]
[405958627,1771456242194,-500.0,0.00013698,2]
[405958628,1771456242204,-500.0,0.00013698,2]
[405958629,1771456242214,-635.95417002,0.00013698,2]
[405958630,1771456242224,-500.0,0.00013698,2]
[405958631,1771456242233,-500.0,0.00013698,2]
[405958632,1771456242242,-500.0,0.00013698,2]
[405958633,1771456242252,-500.0,0.00013698,2]
[405958634,1771456242261,-500.0,0.00013698,2]
[405958635,1771456242270,-500.0,0.00013698,2]
[405958636,1771456242280,-500.0,0.00013698,2]
[405958637,1771456242289,-500.0,0.00013698,2]
[405958638,1771456242299,-500.0,0.00013698,2]
[405958639,1771456242307,-500.0,0.00013698,2]
[405958640,1771456242317,-500.0,0.00013698,2]
[405958641,1771456242328,-500.0,0.00013698,2]
[405958642,1771456242337,-500.0,0.00013698,2]
[405958643,1771456242347,-500.0,0.00013698,2]
[405958644,1771456242356,-500.0,0.00013698,2]
[405958645,1771456242365,-500.0,0.00013698,2]
[405958646,1771456242374,-500.0,0.00013698,2]
[405958647,1771456242383,-500.0,0.00013698,2]
[405958648,1771456242392,-500.0,0.00013698,2]
[405958649,1771456242403,-500.0,0.00013698,2]
[405958650,1771456242412,-500.0,0.00013698,2]
[405958651,1771456242422,-500.0,0.00013698,2]
[405958652,1771456242432,-500.0,0.00013698,2]
[405958653,1771456242441,-500.0,0.00013698,2]
[405958654,1771456242450,-500.0,0.00013698,2]
[405958655,1771456242459,-500.0,0.00013698,2]
[405958656,1771456242468,-500.0,0.00013698,2]
[405958657,1771456242478,-500.0,0.00013698,2]
[405958658,1771456242488,-500.0,0.00013698,2]
[405958659,1771456242499,-500.0,0.00013698,2]
[405958660,1771456242509,-500.0,0.00013698,2]
[405958661,1771456242520,-500.0,0.00013698,2]
[405958662,1771456242529,-500.0,0.00013698,2]
[405958663,1771456242540,-500.0,0.00013698,2]
[405958664,1771456242550,-500.0,0.00013698,2]
[405958665,1771456242560,-500.0,0.00013698,2]
[405958666,1771456242570,-500.0,0.00013698,2]
[405958667,1771456242579,-500.0,0.00013698,2]
[405958668,1771456242589,-551.5455423,0.00013698,2]
[405958669,1771456242599,-500.0,0.00013698,2]
[405958670,1771456242608,-647.19,0.00013698,2]
[405958671,1771456242619,-303.93,0.00013699,2]
[405958672,1771456242628,-2054.89775776,0.00013755,2]
[405958673,1771456242637,-160.0,0.00013943,2]
[405958674,1771456242646,-173.62051493,0.00013943,2]
[405958675,1771456242657,-166.66,0.00013966,2]
[405958676,1771456242667,-500.0,0.0001405,2]
[405958677,1771456242678,-500.0,0.0001405,2]
[405958678,1771456242688,-795.55172821,0.0001405,2]
[405958679,1771456242698,-500.0,0.0001405,2]
[405958680,1771456242708,-150.0,0.00014054,2]
[405958681,1771456242718,-150.0,0.00014054,2]
[405958682,1771456242727,-150.0,0.00014054,2]
[405958683,1771456242737,-150.0,0.00014054,2]
[405958684,1771456242747,-150.0,0.00014054,2]
[405958685,1771456242755,-150.0,0.00014054,2]
[405958686,1771456242765,-162.74,0.00014054,2]
[405958687,1771456242774,-1164.0,0.00014054,2]
[405958688,1771456242785,-1349.261,0.00014054,2]
[405958689,1771456242798,-3528.442,0.00014054,2]
[405958690,1771456242808,-638.503,0.00014054,2]
[405958691,1771456242817,-267.79,0.00014054,2]
[405958692,1771456242827,-1222.0,0.00014054,2]
[405958693,1771456242839,-1218.539,0.00014054,2]
[405958694,1771456242851,-5973.0,0.00014054,2]
[405958695,1771456242861,-2452.0,0.00014054,2]
[405958696,1771456242872,-919.0,0.00014054,2]
[405958697,1771456242882,-303.93,0.00014384,2]
[405958698,1771456242893,-248.592671,0.00014421,7]
[405958699,1771456242903,-151.0,0.00014634,2]
[405958700,1771456242915,-591.1,0.00014644,2]
[405958701,1771456242926,-500.0,0.00014644,2]
[405958702,1771456242935,-761.18,0.00014644,2]
[405958703,1771456242946,-500.0,0.00014644,2]
[405958704,1771456242956,-500.0,0.00014644,2]
[405958705,1771456242966,-41256.98007245,0.00014676,2]
[405958706,1771456242975,-155.57771791,0.000149,2]
[405958707,1771456242985,-250.0,0.00015,2]
[405958708,1771456242996,-303.93,0.00015068,2]
[405958709,1771456243005,-1513.22,0.0001531,2]
[405958710,1771456243016,-41256.98007245,0.00015751,2]
[405958711,1771456243025,-303.93,0.00015753,2]
[405958712,1771456243034,-481.69102308,0.00015869,2]
[405958713,1771456243044,-200.0,0.00016,2]
[405958714,1771456243054,-506.0,0.0001605,2]
[405958715,1771456243064,-9999.99,0.00016116,2]
[405958716,1771456243074,-481.69102308,0.00016265,2]
[405958717,1771456243083,-51941.0,0.0001638,2]
[405958718,1771456243093,-437.77,0.00016414,2]
[405958719,1771456243103,-14906.89,0.00016414,2]
[405958720,1771456243115,-1273.8,0.00016438,2]
[405958721,1771456243125,-227.84,0.00016438,2]
[405958722,1771456243135,-303.93,0.00016438,2]
[405958723,1771456243146,-150.0,0.00016522,2]
[405958724,1771456243157,-481.69102308,0.00016662,2]
[405958725,1771456243167,-591.1,0.00016777,2]
[405958726,1771456243177,-500.0,0.00016777,2]
[405958727,1771456243187,-761.18,0.00016777,2]
[405958728,1771456243197,-500.0,0.00016777,2]
[405958729,1771456243207,-500.0,0.00016777,2]
[405958730,1771456243216,-41256.98007245,0.00016825,2]
[405958731,1771456243225,-51941.0,0.0001692,2]
[405958732,1771456243236,-200.0,0.00016983,2]
[405958733,1771456243245,-300.0,0.00017,2]
[405958734,1771456243256,-506.0,0.00017005,2]
[405958735,1771456243267,-150.0,0.00017054,2]
[405958736,1771456243277,-150.0,0.00017054,2]
[405958737,1771456243286,-150.0,0.00017054,2]
[405958738,1771456243296,-150.0,0.00017054,2]
[405958739,1771456243305,-150.0,0.00017054,2]
[405958740,1771456243314,-1164.0,0.00017054,2]
[405958741,1771456243325,-1338.0,0.00017054,2]
[405958742,1771456243334,-3492.0,0.00017054,2]
[405958743,1771456243345,-617.0,0.00017054,2]
[405958744,1771456243357,-150.0,0.00017054,2]
[405958745,1771456243366,-1222.0,0.00017054,2]
[405958746,1771456243376,-1209.0,0.00017054,2]
[405958747,1771456243386,-5973.0,0.00017054,2]
[405958748,1771456243397,-2452.0,0.00017054,2]
[405958749,1771456243408,-919.0,0.00017054,2]
[405958750,1771456243417,-481.69102308,0.00017059,2]
[405958751,1771456243426,-5000.0,0.000171,2]
[405958752,1771456243435,-5000.0,0.000171,2]
[405958753,1771456243444,-5133.89682485,0.000171,2]
[405958754,1771456243454,-5000.0,0.000171,2]
[405958755,1771456243463,-5000.0,0.000171,2]
[405958756,1771456243472,-5000.0,0.000171,2]
[405958757,1771456243481,-481.69102308,0.00017456,2]
[405958758,1771456243491,-51941.0,0.0001746,2]
[405958759,1771456243500,-1582.1457329,0.000177,2]
[405958760,1771456243509,-400.0,0.000177,6]
[405958761,1771456243519,-300.0,0.00017707,2]
[405958762,1771456243527,-300.0,0.00017707,2]
[405958763,1771456243537,-666.0,0.00017707,2]
[405958764,1771456243546,-300.0,0.00017707,2]
[405958765,1771456243556,-666.0,0.00017707,2]
[405958766,1771456243565,-300.0,0.00017707,2]
[405958768,1771456243574,-179982.8327,0.00017708,2]
[405958769,1771456243584,-400.0,0.000178,6]
[405958770,1771456243593,-500.0,0.00017808,2]
[405958771,1771456243603,-500.0,0.00017808,2]
[405958772,1771456243612,-500.0,0.00017808,2]
[405958773,1771456243621,-500.0,0.00017808,2]
[405958774,1771456243630,-500.0,0.00017808,2]
[405958775,1771456243640,-500.0,0.00017808,2]
[405958776,1771456243649,-500.0,0.00017808,2]
[405958777,1771456243658,-500.0,0.00017808,2]
[405958778,1771456243668,-500.0,0.00017808,2]
[405958779,1771456243677,-500.0,0.00017808,2]
[405958780,1771456243686,-500.0,0.00017808,2]
[405958781,1771456243695,-500.0,0.00017808,2]
[405958782,1771456243704,-500.0,0.00017808,2]
[405958783,1771456243715,-500.0,0.00017808,2]
[405958784,1771456243724,-1073.78107695,0.00017808,2]
[405958785,1771456243733,-1073.78107695,0.00017808,2]
[405958786,1771456243743,-1073.78107695,0.00017808,2]
[405958787,1771456243752,-1073.78107695,0.00017808,2]
[405958788,1771456243762,-1073.78107695,0.00017808,2]
[405958789,1771456243772,-1073.78107695,0.00017808,2]
[405958790,1771456243784,-1073.78107695,0.00017808,2]
[405958791,1771456243800,-1073.78107695,0.00017808,2]
[405958792,1771456243810,-1073.78107695,0.00017808,2]
[405958793,1771456243820,-1073.78107695,0.00017808,2]
[405958794,1771456243831,-1282.02952825,0.00017808,2]
[405958795,1771456243843,-1282.02952825,0.00017808,2]
[405958796,1771456243853,-800.0,0.00017808,2]
[405958797,1771456243863,-481.69102308,0.00017852,2]
[405958798,1771456243872,-300.0,0.00017899,2]
[405958799,1771456243882,-300.0,0.00017899,2]
[405958800,1771456243891,-666.0,0.00017899,2]
[405958801,1771456243900,-300.0,0.00017899,2]
[405958802,1771456243909,-666.0,0.00017899,2]
[405958803,1771456243918,-300.0,0.00017899,2]
[405958804,1771456243927,-3369.19,0.000179,2]
[405958805,1771456243936,-25000.0,0.000179,3]
[405958806,1771456243947,-10170.8953,0.000179,2]
[405958807,1771456243956,-32853.2111,0.000179,2]
[405958808,1771456243966,-1000.0,0.000179,2]
[405958809,1771456243976,-301.06514857,0.000179,2]
[405958810,1771456243986,-150.0,0.000179,2]
[405958811,1771456243995,-400.0,0.000179,6]
[405958814,1771456244005,-403.24562454,0.000179,2]
[405958816,1771456244014,-150.47973038,0.000179,2]
[405958818,1771456244023,-9388.06383747,0.000179,2]
[405958820,1771456244031,-41256.98007245,0.000179,2]
[405958821,1771456244040,-500.0,0.00017958,3]
[405958822,1771456244050,-500.0,0.00017958,3]
[405958823,1771456244059,-500.0,0.00017958,3]
[405958824,1771456244068,-500.0,0.00017958,3]
[405958825,1771456244077,-500.0,0.00017958,3]
[405958826,1771456244086,-500.0,0.00017958,3]
[405958827,1771456244095,-500.0,0.00017958,3]
[405958828,1771456244106,-500.0,0.00017958,3]
[405958830,1771456244115,-500.0,0.00017958,3]
[405958832,1771456244127,-500.0,0.00017958,3]
[405958833,1771456244138,-500.0,0.00017958,3]
[405958834,1771456244149,-500.0,0.00017958,3]
[405958835,1771456244161,-500.0,0.00017958,3]
[405958836,1771456244172,-151.0,0.00017958,3]
[405958837,1771456244184,-500.0,0.00017958,3]
[405958838,1771456244193,-500.0,0.00017958,3]
[405958839,1771456244203,-151.0,0.00017958,3]
[405958840,1771456244213,-500.0,0.00017958,3]
[405958841,1771456244223,-500.0,0.00017958,3]
[405958842,1771456244234,-151.0,0.00017958,3]
[405958843,1771456244245,-500.0,0.00017958,3]
[405958844,1771456244256,-500.0,0.00017958,3]
[405958845,1771456244266,-151.0,0.00017958,3]
[405958846,1771456244276,-500.0,0.00017958,3]
[405958847,1771456244288,-500.0,0.00017958,3]
[405958848,1771456244300,-151.0,0.00017958,3]
[405958849,1771456244313,-500.0,0.00017958,3]
[405958850,1771456244325,-151.0,0.00017958,3]
[405958851,1771456244337,-151.0,0.00017958,3]
[405958852,1771456244348,-151.0,0.00017958,3]
[405958853,1771456244358,-151.0,0.00017958,3]
[405958854,1771456244369,-151.0,0.00017958,3]
[405958855,1771456244379,-151.0,0.00017958,3]
[405958856,1771456244391,-506.0,0.00017959,3]
[405958857,1771456244400,-245.86778969,0.00017973,2]
[405958858,1771456244413,-168.63570163,0.00017973,2]
[405958859,1771456244424,-184.10682969,0.00017973,2]
[405958860,1771456244436,-500.27840167,0.00017973,2]
[405958861,1771456244446,-502.89755561,0.00017973,2]
[405958862,1771456244458,-165.19851393,0.00017973,2]
[405958863,1771456244470,-500.0,0.00017973,2]
[405958864,1771456244483,-162.86870142,0.00017973,2]
[405958865,1771456244495,-500.0,0.00017973,2]
[405958866,1771456244506,-500.0,0.00017973,2]
[405958867,1771456244518,-500.0,0.00017973,2]
[405958868,1771456244530,-164.39891665,0.00017973,2]
[405958869,1771456244543,-500.0,0.00017973,2]
[405958870,1771456244555,-503.24422827,0.00017973,2]
[405958871,1771456244567,-500.0,0.00017973,2]
[405958872,1771456244579,-500.0,0.00017973,2]
[405958873,1771456244590,-500.0,0.00017973,2]
[405958874,1771456244601,-307.32831336,0.00017973,2]
[405958875,1771456244613,-166.81542431,0.00017973,2]
[405958876,1771456244623,-500.0,0.00017973,2]
[405958877,1771456244634,-500.0,0.00017973,2]
[405958878,1771456244645,-500.0,0.00017973,2]
[405958879,1771456244656,-167.33946284,0.00017973,2]
[405958880,1771456244666,-230.21037703,0.00017973,2]
[405958881,1771456244677,-500.0,0.00017973,2]
[405958882,1771456244689,-500.0,0.00017973,2]
[405958883,1771456244699,-500.0,0.00017973,2]
[405958884,1771456244709,-500.0,0.00017973,2]
[405958885,1771456244720,-500.0,0.00017973,2]
[405958886,1771456244731,-500.0,0.00017973,2]
[405958887,1771456244742,-500.0,0.00017973,2]
[405958888,1771456244753,-493.23699365,0.00017973,2]
[405958889,1771456244765,-500.0,0.00017973,2]
[405958890,1771456244777,-502.35320902,0.00017973,2]
[405958891,1771456244790,-500.0,0.00017973,2]
[405958892,1771456244803,-500.0,0.00017973,2]
[405958893,1771456244814,-500.0,0.00017973,2]
[405958894,1771456244825,-500.0,0.00017973,2]
[405958895,1771456244836,-4347.87,0.00017973,2]
[405958896,1771456244847,-4328.04,0.0001799,2]
[405958897,1771456244859,-1415.69506442,0.0001799,2]
[405958898,1771456244871,-4327.34,0.00017997,2]
[405958899,1771456244883,-591.1,0.00017998,2]